bitfinex-derivatives/quotes_ETHF0:USTF0_20230401
["timestamp","ask_amount","ask_price","bid_price","bid_amount"]
[1680348842714,1.40586273,1827.5,1827.3,3.2078]
[1680348845719,0.54496376,1827.5,1827.3,3.2078]
[1680348845922,0.86089897,1827.5,1827.4,0.03863727]
[1680348846115,1.68153755,1827.6,1827.1,4.2078]
[1680348846322,0.86020039,1827.5,1827.1,4.2078]
[1680348848325,0.86020039,1827.5,1827.1,3.2078]
[1680348848625,0.86020039,1827.3,1827.1,3.2078]
[1680348849624,0.86020039,1827.3,1826.9,42.98998027]
[1680348849825,0.86020039,1827.2,1826.9,42.98998027]
[1680348853525,0.86020039,1827.2,1826.9,46.19778027]
[1680348853732,0.86020039,1827.2,1827.0,1.0]
[1680348854229,0.86020039,1827.3,1827.0,1.0]
[1680348858527,0.86020039,1827.3,1826.9,46.19778027]
[1680348859133,0.86020039,1827.3,1827.0,1.0]
[1680348871551,0.86020039,1827.3,1827.1,3.2078]
[1680348871752,0.86020039,1827.3,1827.2,1.0]
[1680348872757,0.86020039,1827.3,1827.1,3.2078]
[1680348873854,0.86020039,1827.3,1827.2,1.0]
[1680348877770,0.86020039,1827.4,1827.2,1.0]
[1680348882372,0.85294981,1827.4,1827.2,1.0]
[1680348883376,1.14761757,1827.6,1827.3,3.2078]
[1680348892082,2.14761757,1827.6,1827.3,3.2078]
[1680348892284,2.14761757,1827.6,1827.1,3.2078]
[1680348893283,1.14761757,1827.5,1827.1,3.2078]
[1680348894385,2.14761757,1827.6,1827.1,3.2078]
[1680348894577,1.14761757,1827.5,1827.1,3.2078]
[1680348904395,1.14761757,1827.5,1827.1,3.20149941]
[1680348904795,1.14761757,1827.5,1827.2,1.0]
[1680348904996,1.14761757,1827.6,1827.2,1.0]
[1680348905298,1.14761757,1827.6,1827.3,3.2078]
[1680348905489,1.14761757,1827.6,1827.4,1.0]
[1680348909899,1.14761757,1827.6,1827.4,1.54447514]
[1680348910294,1.14761757,1827.6,1827.3,3.2078]
[1680348910700,1.14761757,1827.6,1827.4,1.0]
[1680348911395,1.14761757,1827.6,1827.3,3.2078]
[1680348911597,1.14761757,1827.6,1827.4,1.0]
[1680348911994,1.14761757,1827.6,1827.3,3.2078]
[1680348912993,1.14761757,1827.6,1827.4,1.0]
[1680348913389,1.14761757,1827.6,1827.3,3.2078]
[1680348913793,1.14761757,1827.6,1827.4,1.0]
[1680348919495,1.14761757,1827.6,1827.4,0.55905785]
[1680348919802,1.14761757,1827.6,1827.4,1.0]
[1680348920501,1.14761757,1827.6,1827.3,3.2078]
[1680348928807,1.14761757,1827.6,1827.1,4.2078]
[1680348929009,1.14761757,1827.5,1827.1,3.2078]
[1680348929317,1.14761757,1827.4,1827.1,3.2078]
[1680348931016,1.14761757,1827.3,1827.1,3.2078]
[1680348932110,1.14761757,1827.4,1827.1,3.2078]
[1680348936017,0.5737316,1827.2,1827.1,3.2078]
[1680348936317,0.5737316,1827.2,1826.9,3.74390121]
[1680348936621,0.5737316,1827.0,1826.9,0.53610121]
[1680348936813,0.5737316,1827.0,1826.7,3.2078]
[1680348939217,0.5737316,1827.1,1826.7,3.2078]
[1680348939621,0.5737316,1827.0,1826.8,1.0]
[1680348940120,0.5737316,1827.1,1826.8,1.0]
[1680348941022,0.5737316,1827.1,1826.7,3.2078]
[1680348941623,0.5737316,1827.1,1826.8,1.0]
[1680348942725,0.5737316,1827.1,1826.7,3.2078]
[1680348943734,0.5737316,1827.1,1826.8,1.0]
[1680348953042,2.43345657,1827.2,1826.8,1.0]
[1680348953237,1.43345657,1827.2,1826.8,1.0]
[1680348953744,0.5737316,1827.2,1826.8,1.0]
[1680348956147,1.43345657,1827.2,1826.8,1.0]
[1680348956448,0.5737316,1827.2,1826.8,1.0]
[1680348958045,0.5737316,1827.1,1826.8,1.0]
[1680348958251,1.43345657,1827.2,1826.8,1.0]
[1680348958751,1.43345657,1827.2,1826.7,3.2078]
[1680348959045,4.64125657,1827.1,1826.7,3.2078]
[1680348959249,0.5737316,1827.0,1826.7,3.2078]
[1680348961751,0.5737316,1827.0,1826.5,4.2078]
[1680348962147,1.43345657,1827.0,1826.5,4.2078]
[1680348962345,0.5737316,1827.0,1826.5,4.2078]
[1680348965050,0.5737316,1826.9,1826.5,4.2078]
[1680348965443,1.43345657,1827.0,1826.5,4.2078]
[1680348965944,1.11151108,1827.0,1826.5,4.2078]
[1680348966149,0.5737316,1826.9,1826.5,4.2078]
[1680348967249,1.97123605,1827.0,1826.5,4.2078]
[1680348968050,0.5737316,1826.9,1826.5,4.2078]
[1680348968438,0.5737316,1826.9,1826.5,3.2078]
[1680348968642,0.5737316,1826.9,1826.5,4.2078]
[1680348969250,0.5737316,1826.9,1826.6,1.0]
[1680348970346,0.5737316,1826.9,1826.5,4.2078]
[1680348970547,0.5737316,1826.9,1826.6,1.0]
[1680348974556,0.5737316,1826.9,1826.5,4.2078]
[1680348974950,0.5737316,1826.9,1826.5,45.0078]
[1680348975255,0.5737316,1826.9,1826.6,1.0]
[1680348978151,1.43345657,1826.9,1826.6,1.0]
[1680348980158,0.5737316,1826.8,1826.6,1.0]
[1680348982459,0.5737316,1826.8,1826.5,44.0078]
[1680348983059,0.5737316,1826.8,1826.5,3.2078]
[1680348983754,0.5737316,1826.8,1826.5,4.2078]
[1680348984664,0.5737316,1826.8,1826.4,42.99746363]
[1680348984850,0.56711104,1826.7,1826.4,42.99746363]
[1680348985058,0.56711104,1826.7,1826.4,2.19746363]
[1680348985257,0.56711104,1826.7,1826.3,3.2078]
[1680348985459,0.56711104,1826.7,1826.3,3.74352362]
[1680348985857,4.63463601,1826.7,1826.3,3.74352362]
[1680348986061,4.06752497,1826.7,1826.3,3.74352362]
[1680348986657,4.06752497,1826.7,1826.3,5.35106106]
[1680348989765,3.2078,1826.7,1826.3,5.35106106]
[1680348993755,3.2078,1826.7,1826.3,5.34533409]
[1680348994062,3.2078,1826.7,1826.4,1.0]
[1680348996557,0.85972497,1826.6,1826.3,0.53572362]
[1680348996763,3.2078,1826.5,1826.2,1.0]
[1680348999068,3.2078,1826.5,1826.2,1.53751708]
[1680348999666,3.2078,1826.5,1826.2,1.0]
[1680349010276,4.06752497,1826.5,1826.2,1.0]
[1680349013275,3.2078,1826.5,1826.2,1.0]
[1680349014075,4.06752497,1826.5,1826.2,1.0]
[1680349016777,4.06752497,1826.5,1826.1,42.97866234]
[1680349016969,4.06752497,1826.5,1826.2,1.0]
[1680349026785,0.85972497,1826.5,1826.2,1.0]
[1680349033187,0.85972497,1826.4,1826.2,1.0]
[1680349034378,0.85972497,1826.4,1826.1,42.97866234]
[1680349034586,0.85972497,1826.4,1826.2,1.0]
[1680349039289,0.85972497,1826.3,1826.2,1.0]
[1680349040187,0.85972497,1826.4,1826.2,1.0]
[1680349041278,0.85972497,1826.3,1826.2,1.0]
[1680349041478,0.85972497,1826.4,1826.2,1.0]
[1680349045388,0.85972497,1826.3,1826.2,1.0]
[1680349046287,0.85972497,1826.4,1826.2,1.0]
[1680349047388,0.85972497,1826.3,1826.2,1.0]
[1680349050998,0.85972497,1826.3,1826.1,42.97866234]
[1680349051199,0.85972497,1826.3,1826.2,1.0]
[1680349053793,4.64387953,1826.3,1826.1,0.55394266]
[1680349053993,1.14904464,1826.2,1825.7,3.2078]
[1680349054196,0.86177381,1826.0,1825.8,40.8]
[1680349054394,0.86177381,1826.0,1825.8,41.8]
[1680349054587,0.86177381,1826.1,1825.9,1.0]
[1680349057702,0.86177381,1826.3,1825.9,4.2078]
[1680349057896,0.86177381,1826.3,1826.1,3.2078]
[1680349058289,0.86177381,1826.3,1826.2,1.0]
[1680349059701,0.86177381,1826.4,1826.2,1.0]
[1680349059898,0.86177381,1826.3,1826.2,1.0]
[1680349062194,0.86177381,1826.4,1826.2,1.0]
[1680349062392,0.86177381,1826.3,1826.2,1.0]
[1680349063096,0.86177381,1826.4,1826.2,1.0]
[1680349065205,0.86177381,1826.3,1826.2,1.0]
[1680349072310,0.86177381,1826.3,1826.1,4.2078]
[1680349072509,0.86177381,1826.3,1826.2,1.0]
[1680349079420,0.86177381,1826.3,1826.1,4.2078]
[1680349080017,0.86177381,1826.3,1826.2,1.0]
[1680349083129,0.86177381,1826.3,1826.1,4.2078]
[1680349083426,0.86177381,1826.3,1826.2,1.0]
[1680349090326,0.86177381,1826.3,1826.1,4.2078]
[1680349090526,0.86177381,1826.2,1826.0,2.64601789]
[1680349091228,0.86177381,1826.2,1826.1,5.81250549]
[1680349101941,0.86177381,1826.2,1826.1,6.81250549]
[1680349104444,0.86177381,1826.2,1826.0,2.64601789]
[1680349104946,0.57414212,1826.1,1826.0,2.64601789]
[1680349117459,0.57414212,1826.1,1826.0,5.85381789]
[1680349117662,0.86177381,1826.2,1826.0,11.88680882]
[1680349117663,1.43591593,1826.2,1826.0,11.88680882]
[1680349117960,1.43591593,1826.2,1826.1,1.0]
[1680349118261,1.43566199,1826.2,1826.1,1.0]
[1680349118453,0.86177381,1826.2,1826.1,1.0]
[1680349118653,1.43567825,1826.2,1826.1,1.0]
[1680349119353,0.86177381,1826.2,1826.1,1.0]
[1680349121763,1.43571081,1826.2,1826.1,1.0]
[1680349122267,0.573937,1826.2,1826.1,1.0]
[1680349126361,1.43571081,1826.2,1826.1,1.0]
[1680349130172,0.86177381,1826.2,1826.1,1.0]
[1680349131879,0.86177381,1826.2,1826.1,2.639]
[1680349141087,0.86177381,1826.2,1826.1,1.639]
[1680349141281,0.86177381,1826.2,1826.1,2.639]
[1680349143592,1.43146759,1826.3,1826.1,5.107]
[1680349143786,1.43146759,1826.3,1826.2,4.8468]
[1680349143993,1.43146759,1826.3,1826.2,5.8468]
[1680349144187,1.43146759,1826.3,1826.2,11.81450797]
[1680349144488,0.56969378,1826.3,1826.2,11.81450797]
[1680349144792,1.43146759,1826.3,1826.2,11.81450797]
[1680349145182,0.86177381,1826.3,1826.2,11.81450797]
[1680349145591,0.86177381,1826.4,1826.3,0.821]
[1680349145884,0.86177381,1826.4,1826.3,3.461]
[1680349146583,1.14904464,1826.5,1826.3,3.461]
[1680349146790,1.14904464,1826.5,1826.4,1.64]
[1680349146984,1.14904464,1826.5,1826.4,0.819]
[1680349152495,1.14904464,1826.5,1826.4,1.37996543]
[1680349152984,1.14904464,1826.5,1826.4,2.37996543]
[1680349160193,1.14904464,1826.5,1826.4,1.37996543]
[1680349162900,1.14904464,1826.5,1826.4,0.819]
[1680349165302,3.2078,1826.5,1826.4,0.819]
[1680349166800,4.0288,1826.5,1826.2,0.814]
[1680349167000,0.86042652,1826.3,1826.2,0.814]
[1680349168903,1.14723535,1826.4,1826.2,0.814]
[1680349169099,0.86038972,1826.3,1826.2,0.814]
[1680349169305,1.14723535,1826.4,1826.2,0.814]
[1680349172511,1.0,1826.3,1826.2,0.814]
[1680349172711,2.14723535,1826.3,1826.2,0.814]
[1680349173011,1.14723535,1826.3,1826.2,0.814]
[1680349179617,1.14723535,1826.4,1826.2,0.814]
[1680349179816,0.86026748,1826.3,1826.2,1.814]
[1680349180017,1.14723535,1826.4,1826.2,1.814]
[1680349180217,1.14723535,1826.3,1826.2,1.814]
[1680349180716,1.14723535,1826.4,1826.2,1.814]
[1680349180918,0.86025675,1826.3,1826.2,1.814]
[1680349181318,1.14723535,1826.4,1826.2,1.814]
[1680349183317,1.14723535,1826.4,1826.3,0.814]
[1680349188524,1.14723535,1826.4,1826.3,0.81025597]
[1680349198833,4.64387953,1826.5,1826.3,0.81025597]
[1680349199128,1.14817561,1826.4,1826.2,1.0]
[1680349199329,4.64387953,1826.5,1826.3,0.82]
[1680349199629,3.2078,1826.5,1826.4,0.821]
[1680349199932,5.32200518,1826.5,1826.4,0.821]
[1680349200333,3.88671895,1826.5,1826.4,0.821]
[1680349200826,5.32199399,1826.5,1826.4,0.821]
[1680349201234,3.88671895,1826.5,1826.4,0.821]
[1680349207026,3.88671895,1826.5,1826.3,0.821]
[1680349207335,2.11430838,1826.4,1826.3,0.821]
[1680349216956,2.11430838,1826.4,1826.3,0.814]
[1680349226962,2.11430838,1826.4,1826.3,0.821]
[1680349227454,1.43538293,1826.4,1826.3,0.821]
[1680349231559,4.64318293,1826.5,1826.3,0.821]
[1680349232462,1.14769235,1826.4,1826.3,0.821]
[1680349233350,1.14769235,1826.4,1826.3,1.64]
[1680349235360,1.14769235,1826.5,1826.3,1.64]
[1680349235666,1.43538293,1826.6,1826.4,1.814]
[1680349235857,1.1474829,1826.5,1826.4,1.0]
[1680349236057,1.1474829,1826.5,1826.4,1.814]
[1680349236364,1.43538293,1826.6,1826.4,1.814]
[1680349236565,1.1474804,1826.5,1826.4,1.0]
[1680349236866,1.1474804,1826.5,1826.4,1.816]
[1680349239072,1.1474804,1826.5,1826.4,2.35891716]
[1680349240673,2.93526558,1826.5,1826.1,1.818]
[1680349240875,0.86022115,1826.3,1826.1,0.818]
[1680349241071,0.86022115,1826.3,1826.1,1.818]
[1680349241271,0.86022115,1826.3,1826.1,0.818]
[1680349242164,0.86022115,1826.3,1826.1,1.818]
[1680349247671,0.86022115,1826.2,1826.1,1.818]
[1680349247877,0.86022115,1826.2,1826.1,1.821]
[1680349248779,0.86022115,1826.2,1826.1,0.821]
[1680349249176,0.86022115,1826.2,1826.1,1.821]
[1680349249379,0.86022115,1826.2,1826.1,0.821]
[1680349249580,0.86022115,1826.2,1826.1,1.821]
[1680349250778,0.86022115,1826.3,1826.1,1.821]
[1680349251173,0.86022115,1826.3,1826.2,1.0]
[1680349253977,0.86022115,1826.5,1826.2,5.0218]
[1680349254184,0.86022115,1826.5,1826.4,3.2078]
[1680349255383,0.86013709,1826.7,1826.5,1.0]
[1680349255579,0.86013709,1826.8,1826.6,5.6588]
[1680349255779,0.86013709,1826.8,1826.7,1.635]
[1680349256078,0.86013709,1826.8,1826.7,2.635]
[1680349256791,0.86013709,1826.9,1826.7,2.635]
[1680349256985,0.86013709,1826.9,1826.8,4.0268]
[1680349260987,0.86013709,1826.9,1826.8,0.819]
[1680349261683,0.86013709,1826.9,1826.8,4.0268]
[1680349261882,0.86013709,1826.9,1826.8,0.819]
[1680349262584,0.86013709,1826.9,1826.8,1.633]
[1680349262784,0.86013709,1827.0,1826.8,4.8408]
[1680349262982,0.86013709,1826.9,1826.8,4.0218]
[1680349263182,0.86013709,1826.9,1826.8,4.8358]
[1680349263585,1.43251633,1826.9,1826.8,4.8358]
[1680349263986,0.57237924,1826.9,1826.8,4.8358]
[1680349264187,0.57237924,1826.9,1826.8,1.628]
[1680349264990,0.57237924,1826.9,1826.8,4.8358]
[1680349267090,0.57237924,1826.9,1826.8,4.0218]
[1680349267993,0.57237924,1826.9,1826.8,0.814]
[1680349268295,0.57237924,1826.9,1826.8,4.0218]
[1680349268494,1.43251633,1827.0,1826.8,4.0218]
[1680349268698,1.43251633,1827.0,1826.9,0.821]
[1680349268987,1.43251633,1827.0,1826.9,1.821]
[1680349269193,1.43251633,1827.0,1826.9,0.821]
[1680349269995,0.57237924,1827.0,1826.9,0.821]
[1680349270385,0.57237924,1827.0,1826.9,1.821]
[1680349271094,0.57237924,1827.1,1826.9,1.814]
[1680349271298,0.57237924,1827.1,1827.0,0.82]
[1680349273895,0.57237924,1827.1,1826.9,0.814]
[1680349274099,0.57237924,1827.0,1826.9,0.814]
[1680349277098,0.57237924,1827.0,1826.9,0.82]
[1680349277294,1.43251633,1827.1,1826.9,1.821]
[1680349277599,0.57237924,1827.1,1827.0,0.814]
[1680349277996,0.57237924,1827.1,1827.0,4.0218]
[1680349278400,0.57237924,1827.2,1827.0,4.0218]
[1680349278601,0.57237924,1827.2,1827.1,0.819]
[1680349278803,0.57237924,1827.2,1827.1,1.819]
[1680349279106,0.57237924,1827.2,1827.1,0.819]
[1680349279695,0.57237924,1827.2,1827.1,1.819]
[1680349280301,0.57237924,1827.2,1827.1,0.819]
[1680349287803,1.43251633,1827.3,1827.1,0.819]
[1680349288506,0.57237924,1827.2,1827.1,0.819]
[1680349293306,1.43251633,1827.2,1827.1,0.819]
[1680349294009,0.57237924,1827.2,1827.1,0.819]
[1680349294213,1.43251633,1827.2,1827.1,0.819]
[1680349294408,0.57237924,1827.2,1827.1,0.819]
[1680349294709,0.86013709,1827.2,1827.1,0.819]
[1680349297510,1.14696153,1827.3,1827.1,0.819]
[1680349298309,1.14696153,1827.2,1827.1,0.819]
[1680349299313,4.0288,1827.2,1826.9,0.82]
[1680349299511,0.85955132,1827.0,1826.9,0.82]
[1680349300611,2.14606842,1827.1,1826.9,0.82]
[1680349300808,1.14606842,1827.0,1826.9,0.82]
[1680349301609,2.14606842,1827.1,1826.9,0.82]
[1680349301805,1.14606842,1827.0,1826.9,0.82]
[1680349315930,2.43538293,1827.0,1826.9,0.82]
[1680349316232,6.46318293,1827.0,1826.7,0.814]
[1680349316531,0.86025394,1826.8,1826.7,0.814]
[1680349316929,0.86025394,1826.8,1826.7,0.821]
[1680349317127,2.14700525,1826.9,1826.7,0.821]
[1680349317432,1.14700525,1826.9,1826.7,0.821]
[1680349317629,1.14700525,1826.8,1826.7,0.821]
[1680349317831,2.14700525,1826.9,1826.7,0.821]
[1680349318132,0.86009946,1826.8,1826.7,0.821]
[1680349333753,0.8550435,1826.8,1826.7,0.821]
[1680349337852,0.8550435,1826.8,1826.7,1.821]
[1680349338548,0.8550435,1826.8,1826.7,0.821]
[1680349342256,1.14700525,1826.9,1826.7,0.821]
[1680349343350,1.14700525,1826.9,1826.7,1.821]
[1680349346558,1.14700525,1826.9,1826.7,0.821]
[1680349346760,1.14700525,1826.8,1826.7,0.821]
[1680349347061,1.14700525,1826.8,1826.7,0.814]
[1680349347262,1.14700525,1826.9,1826.7,0.814]
[1680349347459,1.14700525,1826.9,1826.8,0.82]
[1680349347762,4.64318293,1827.0,1826.8,0.82]
[1680349349762,4.64318293,1827.0,1826.8,0.81205176]
[1680349354067,1.43538293,1826.9,1826.8,0.81205176]
[1680349359968,2.11411208,1826.9,1826.8,0.81205176]
[1680349372076,2.93411208,1826.9,1826.6,0.821]
[1680349372269,1.14808181,1826.7,1826.6,0.821]
[1680349378180,1.14808181,1826.8,1826.6,0.821]
[1680349379780,3.25538293,1826.9,1826.6,0.821]
[1680349379781,1.14808181,1826.7,1826.6,0.821]
[1680349382479,1.14808181,1826.7,1826.6,1.821]
[1680349383387,1.14808181,1826.8,1826.6,1.821]
[1680349383881,1.14808181,1826.7,1826.6,1.821]
[1680349384180,1.14808181,1826.7,1826.6,0.821]
[1680349385378,1.14808181,1826.8,1826.6,0.821]
[1680349385579,1.14808181,1826.8,1826.6,1.821]
[1680349392396,1.14808181,1826.8,1826.6,0.821]
[1680349393295,1.14808181,1826.8,1826.6,1.821]
[1680349401604,0.86111288,1826.7,1826.6,1.821]
[1680349406196,0.86111288,1826.7,1826.6,5.0288]
[1680349416915,0.86111288,1826.7,1826.6,4.0288]
[1680349417121,0.86111288,1826.7,1826.6,5.0288]
[1680349417418,0.86111288,1826.7,1826.6,4.0288]
[1680349417616,0.86111288,1826.7,1826.6,5.0288]
[1680349427030,0.86111288,1826.7,1826.6,5.8428]
[1680349428333,0.86111288,1826.7,1826.6,4.8428]
[1680349428529,0.86111288,1826.7,1826.6,5.8428]
[1680349428733,0.86111288,1826.7,1826.6,4.8428]
[1680349429136,0.86111288,1826.7,1826.6,5.8428]
[1680349429433,0.86111288,1826.7,1826.6,4.8428]
[1680349430133,0.86111288,1826.7,1826.6,5.8428]
[1680349432932,0.86111288,1826.7,1826.6,4.8428]
[1680349433136,0.86111288,1826.7,1826.6,45.6428]
[1680349434237,1.43540019,1826.7,1826.6,45.6428]
[1680349435339,0.86111288,1826.7,1826.6,45.6428]
[1680349448348,0.57442913,1826.7,1826.6,45.6428]
[1680349448748,0.5672963,1826.7,1826.6,45.6428]
[1680349456960,0.5672963,1826.7,1826.6,45.6488]
[1680349460066,0.5672963,1826.7,1826.6,51.46184675]
[1680349467077,0.5672963,1826.7,1826.6,52.28284675]
[1680349484490,0.5672963,1826.7,1826.6,49.07504675]
[1680349484795,0.86111288,1826.7,1826.6,49.07504675]
[1680349486091,0.86111288,1826.7,1826.6,52.28284675]
[1680349486288,0.86111288,1826.7,1826.6,48.25504675]
[1680349486500,0.86111288,1826.7,1826.6,7.45504675]
[1680349491005,0.86111288,1826.7,1826.6,6.63404675]
[1680349491691,0.86111288,1826.7,1826.6,6.62812407]
[1680349491892,0.86111288,1826.7,1826.6,7.62812407]
[1680349497007,0.86111288,1826.7,1826.6,8.44712407]
[1680349501408,0.86111288,1826.7,1826.6,7.44712407]
[1680349502407,0.86111288,1826.7,1826.6,48.24712407]
[1680349504419,0.86111288,1826.7,1826.6,47.43204675]
[1680349507019,0.86111288,1826.7,1826.6,47.43304675]
[1680349508711,3.40146474,1826.8,1826.5,2.20457005]
[1680349508915,5.17688181,1826.6,1826.3,0.82]
[1680349509210,0.86045419,1826.5,1826.3,0.82]
[1680349509609,0.86045419,1826.5,1826.3,1.82]
[1680349511620,0.86045419,1826.5,1826.3,0.82]
[1680349512518,0.86045419,1826.5,1826.3,1.82]
[1680349515020,0.86045419,1826.5,1826.3,0.82]
[1680349515323,0.86045419,1826.5,1826.4,40.8]
[1680349517219,0.86045419,1826.5,1826.4,41.616]
[1680349521023,2.642,1826.5,1825.6,4.0228]
[1680349521219,0.818,1826.0,1825.6,4.0228]
[1680349521419,0.818,1826.0,1825.6,5.66968927]
[1680349521718,0.818,1826.0,1825.7,1.0]
[1680349521914,0.818,1826.0,1825.7,7.18593807]
[1680349522517,3.2078,1826.1,1825.8,0.821]
[1680349525627,3.74668498,1826.1,1825.8,0.821]
[1680349526921,3.74668498,1826.1,1825.7,7.18593807]
[1680349527121,3.74668498,1826.1,1825.8,0.82]
[1680349532330,3.74668498,1826.1,1825.8,1.36950761]
[1680349533032,0.821,1826.2,1825.9,1.0]
[1680349534033,0.821,1826.2,1825.8,4.57730761]
[1680349534632,0.821,1826.2,1825.9,1.0]
[1680349536724,6.72372111,1826.4,1826.0,0.814]
[1680349536928,1.67502111,1826.4,1826.0,0.814]
[1680349537432,3.2078,1826.3,1826.0,0.814]
[1680349545536,4.06682111,1826.3,1826.0,0.814]
[1680349545938,3.2078,1826.3,1826.0,0.814]
[1680349547241,4.06682111,1826.3,1826.0,0.814]
[1680349548446,1.816,1826.4,1826.0,0.814]
[1680349548447,5.88282111,1826.4,1826.0,0.814]
[1680349549139,0.85902111,1826.3,1826.0,0.814]
[1680349550944,1.67502111,1826.4,1826.0,4.0218]
[1680349551245,0.85902111,1826.4,1826.3,1.641]
[1680349557050,0.85902111,1826.4,1826.3,0.821]
[1680349557254,1.14536147,1826.5,1826.3,0.821]
[1680349557445,0.85914654,1826.4,1826.3,0.821]
[1680349557647,2.14536147,1826.5,1826.3,0.821]
[1680349557950,1.14536147,1826.5,1826.3,0.821]
[1680349558351,2.14536147,1826.5,1826.3,0.821]
[1680349558949,1.14536147,1826.5,1826.3,0.821]
[1680349559146,2.14536147,1826.5,1826.3,0.821]
[1680349559343,1.14536147,1826.4,1826.3,0.821]
[1680349565562,1.14536147,1826.5,1826.3,0.821]
[1680349566056,0.85990187,1826.4,1826.3,1.821]
[1680349566352,0.85990187,1826.4,1826.3,1.64]
[1680349566959,0.85990187,1826.4,1826.3,2.64]
[1680349568156,0.85990187,1826.4,1826.3,1.64]
[1680349569261,0.85990187,1826.4,1826.3,2.64]
[1680349570156,0.57307831,1826.4,1826.3,2.64]
[1680349570752,0.57307831,1826.4,1826.3,3.19523161]
[1680349571764,0.57307831,1826.4,1826.3,2.64]
[1680349573160,0.57307831,1826.4,1826.3,3.18187365]
[1680349574859,0.57307831,1826.4,1826.3,2.64]
[1680349575558,0.57307831,1826.4,1826.3,1.64]
[1680349575754,1.0,1826.4,1826.1,0.821]
[1680349575964,0.57290294,1826.2,1826.1,0.821]
[1680349576671,0.57290294,1826.2,1826.1,6.76974529]
[1680349576967,0.57290294,1826.2,1826.1,5.94874529]
[1680349577355,0.57290294,1826.2,1826.0,6.4414697]
[1680349578657,0.57290294,1826.2,1826.1,2.635]
[1680349581377,0.57290294,1826.2,1826.1,1.635]
[1680349581679,0.5708249,1826.2,1826.1,0.821]
[1680349582079,1.43017931,1826.2,1826.1,0.821]
[1680349584085,0.85935441,1826.2,1826.1,0.821]
[1680349597096,0.85935441,1826.2,1826.1,0.82]
[1680349598191,0.85935441,1826.2,1826.1,7.72366905]
[1680349600296,0.85935441,1826.2,1826.1,6.72366905]
[1680349607006,0.85935441,1826.2,1826.1,7.54266905]
[1680349618911,0.85935441,1826.2,1826.1,1.639]
[1680349619410,1.14536147,1826.2,1825.9,0.819]
[1680349619603,0.86024875,1826.1,1825.9,0.819]
[1680349620212,0.86024875,1826.1,1826.0,5.84725656]
[1680349623311,1.14536147,1826.1,1826.0,5.84725656]
[1680349623516,0.54659791,1826.1,1826.0,5.84725656]
[1680349623719,1.14536147,1826.2,1826.0,5.84725656]
[1680349626414,0.03332861,1826.1,1826.0,5.84725656]
[1680349626618,1.14536147,1826.2,1826.0,5.84725656]
[1680349626821,0.86030047,1826.1,1826.0,5.84725656]
[1680349627021,0.86030047,1826.1,1826.0,6.66825656]
[1680349630221,1.40509774,1826.1,1826.0,6.66825656]
[1680349630419,4.0268,1826.1,1825.5,3.2078]
[1680349630720,0.86005995,1825.7,1825.3,3.75293572]
[1680349631019,0.03480683,1825.6,1825.5,0.82]
[1680349631414,4.06785995,1825.8,1825.6,0.2271315]
[1680349631610,4.06785995,1825.8,1825.5,0.85286389]
[1680349631817,0.86005995,1825.8,1825.5,0.85286389]
[1680349632025,0.86005995,1825.8,1825.7,0.816]
[1680349632716,0.86005995,1825.9,1825.7,0.816]
[1680349634217,3.2078,1825.8,1825.7,0.816]
[1680349634426,4.06785995,1825.8,1825.7,0.816]
[1680349634823,3.2078,1825.8,1825.7,0.816]
[1680349637021,3.2078,1825.8,1825.7,0.821]
[1680349645934,3.24263707,1825.8,1825.7,0.821]
[1680349646933,3.24263707,1825.8,1825.6,0.815]
[1680349650031,4.06363707,1825.8,1825.5,0.54951605]
[1680349650238,4.06363707,1825.8,1825.4,0.821]
[1680349650437,4.06363707,1825.8,1825.4,1.821]
[1680349650847,4.06363707,1825.8,1825.5,6.1277092]
[1680349651341,3.2078,1825.6,1825.4,1.37292188]
[1680349652445,4.06363707,1825.8,1825.4,1.37292188]
[1680349652640,1.0,1825.7,1825.4,1.37292188]
[1680349653344,4.06363707,1825.8,1825.4,1.37292188]
[1680349653840,4.06363707,1825.8,1825.5,1.0]
[1680349654544,4.06363707,1825.8,1825.4,1.37292188]
[1680349657045,3.24263707,1825.8,1825.6,0.816]
[1680349662051,4.10269702,1825.8,1825.6,0.816]
[1680349667054,4.92369702,1825.8,1825.5,0.821]
[1680349669958,3.2078,1825.6,1825.5,0.821]
[1680349670454,3.24394662,1825.6,1825.5,0.821]
[1680349674555,4.10400657,1825.6,1825.5,0.821]
[1680349677062,4.10400657,1825.6,1825.4,3.00185093]
[1680349677263,4.10400657,1825.6,1825.4,0.815]
[1680349681463,4.10400657,1825.6,1825.4,1.35619789]
[1680349682958,4.10400657,1825.6,1825.4,2.99386056]
[1680349687160,4.10400657,1825.6,1825.3,0.821]
[1680349688068,4.10400657,1825.6,1825.4,6.33703366]
[1680349689961,0.89620657,1825.6,1825.4,6.33703366]
[1680349690465,0.89620657,1825.6,1825.4,6.89022862]
[1680349694769,0.86005995,1825.5,1825.4,6.89022862]
[1680349695069,0.03619728,1825.5,1825.4,6.89022862]
[1680349695673,0.89625723,1825.5,1825.4,6.89022862]
[1680349695969,0.89625723,1825.5,1825.4,8.54082585]
[1680349696973,0.89625723,1825.5,1825.4,9.36182585]
[1680349699573,4.10405723,1825.5,1825.4,9.36182585]
[1680349705666,4.11392062,1825.5,1825.4,9.36182585]
[1680349706978,4.11392062,1825.5,1825.4,3.02479219]
[1680349709180,4.10655915,1825.5,1825.4,3.02479219]
[1680349713577,0.89875915,1825.5,1825.4,3.02479219]
[1680349715091,0.89875915,1825.5,1825.4,3.84579219]
[1680349716290,0.89875915,1825.5,1825.4,3.02479219]
[1680349720888,4.10655915,1825.5,1825.4,2.20379219]
[1680349721083,4.10655915,1825.5,1825.2,0.821]
[1680349721285,0.57366381,1825.4,1825.2,14.421]
[1680349721686,0.04067368,1825.3,1825.2,14.421]
[1680349721894,0.57366381,1825.4,1825.2,14.421]
[1680349722087,0.57366381,1825.4,1825.2,20.70606165]